[Event "European Online Club-ch-G 2021"]
[Site "Online"]
[Date "2021.03.27"]
[Round "8.3"]
[White "Yildirim, Ibrahim Halil"]
[Black "Hmamouche, Youssef"]
[Result "1-0"]
[ECO "B53"]
[WhiteElo "1783"]
[BlackElo "1926"]
[Annotator "NA"]
[PlyCount "113"]
[EventDate "2021.03.27"]
[EventType "team-tourn"]
[EventCountry "NET"]
[SourceTitle "playchess.com"]
[Source "ChessBase"]
[SourceQuality "1"]
[TimeControl "900+5"]

1. e4 {[%emt 0:00:00]} c5 {[%emt 0:00:05]} 2. Nf3 {[%emt 0:00:03]} d6 {[%emt 0:00:02]} 3. d4 {[%emt 0:00:04]} cxd4 {[%emt 0:00:02]} 4. Qxd4 {[%emt 0:00:01]} Nc6 {[%emt 0:00:03]} 5. Bb5 {[%emt 0:00:02]} Bd7 {[%emt 0:00:01]} 6. Bxc6 {[%emt 0:00:02]} bxc6 {[%emt 0:00:03]} 7. c4 {[%emt 0:00:27]} e5 {[%emt 0:00:03]} 8. Qd3 {[%emt 0:00:03]} Be7 {[%emt 0:00:17]} 9. Nc3 {[%emt 0:00:14]} h6 {[%emt 0:00:05]} 10. O-O {[%emt 0:00:15]} Nf6 {[%emt 0:00:03]} 11. c5 {[%emt 0:00:05]} Bg4 {[%emt 0:00:42]} 12. cxd6 {[%emt 0:00:24]} Qxd6 {[%emt 0:00:10]} 13. Qxd6 {[%emt 0:00:16]} Bxd6 {[%emt 0:00:02]} 14. Be3 {[%emt 0:00:04]} O-O {[%emt 0:00:16]} 15. Rac1 {[%emt 0:00:53]} Rfc8 {[%emt 0:00:30]} 16. Nd2 {[%emt 0:00:38]} Be6 {[%emt 0:00:21]} 17. f3 {[%emt 0:00:09]} a6 {[%emt 0:00:07]} 18. b3 {[%emt 0:00:35]} Nd7 {[%emt 0:01:32]} 19. Na4 {[%emt 0:00:19]} Rab8 {[%emt 0:02:37]} 20. Rc2 {[%emt 0:01:16]} c5 {[%emt 0:00:47]} 21. Rfc1 {[%emt 0:00:29]} Rb5 {[%emt 0:00:22]} 22. Nc4 {[%emt 0:02:52]} Be7 {[%emt 0:00:30]} 23. Ncb2 {[%emt 0:00:52]} f6 {[%emt 0:00:44]} 24. Nd3 {[%emt 0:01:25]} c4 {[%emt 0:00:13]} 25. Ndb2 {[%emt 0:00:41]} Ba3 {[%emt 0:00:32]} 26. Rd1 {[%emt 0:00:41]} c3 {[%emt 0:00:45]} 27. Nd3 {[%emt 0:00:09]} Rb7 {[%emt 0:02:15]} 28. Rxc3 {[%emt 0:01:40]} Rxc3 {[%emt 0:00:04]} 29. Nxc3 {[%emt 0:00:01]} Rc7 {[%emt 0:00:05]} 30. Nd5 {[%emt 0:00:31]} Bxd5 {[%emt 0:00:04]} 31. exd5 {[%emt 0:00:02]} Rc2 {[%emt 0:00:03]} 32. Rd2 {[%emt 0:00:03]} Rc8 {[%emt 0:00:16]} 33. Kf2 {[%emt 0:00:42]} Kf7 {[%emt 0:00:10]} 34. Ke2 {[%emt 0:00:06]} Ke7 {[%emt 0:00:12]} 35. Kd1 {[%emt 0:00:51]} Kd6 {[%emt 0:00:11]} 36. Nf2 {[%emt 0:00:36]} f5 {[%emt 0:00:07]} 37. g4 {[%emt 0:00:04]} g6 {[%emt 0:00:09]} 38. Bxh6 {[%emt 0:00:09]} Rc1+ {[%emt 0:00:19]} 39. Ke2 {[%emt 0:00:09]} Rc5 {[%emt 0:00:10]} 40. gxf5 {[%emt 0:00:18]} gxf5 {[%emt 0:00:02]} 41. Bg5 {[%emt 0:00:04]} Rxd5 {[%emt 0:00:09]} 42. Be7+ {[%emt 0:00:05]} Kxe7 {[%emt 0:00:21]} 43. Rxd5 {[%emt 0:00:01]} Ke6 {[%emt 0:00:46]} 44. Ra5 {[%emt 0:00:04]} Bb2 {[%emt 0:00:06]} 45. Rxa6+ {[%emt 0:00:03]} Kf7 {[%emt 0:00:08]} 46. Nd3 {[%emt 0:00:07]} Bc3 {[%emt 0:00:06]} 47. Rc6 {[%emt 0:00:06]} Ba1 {[%emt 0:00:04]} 48. Rc1 {[%emt 0:00:09]} Bd4 {[%emt 0:00:03]} 49. a4 {[%emt 0:00:01]} Ke6 {[%emt 0:00:02]} 50. b4 {[%emt 0:00:02]} Nb6 {[%emt 0:00:12]} 51. a5 {[%emt 0:00:05]} Na4 {[%emt 0:00:07]} 52. Nc5+ {[%emt 0:00:07]} Nxc5 {[%emt 0:00:19]} 53. bxc5 {[%emt 0:00:02]} Kd7 {[%emt 0:00:01]} 54. a6 {[%emt 0:00:03]} Kc7 {[%emt 0:00:05]} 55. a7 {[%emt 0:00:01]} Kb7 {[%emt 0:00:02]} 56. c6+ {[%emt 0:00:01]} Kxa7 {[%emt 0:00:05]} 57. c7 {[%emt 0:00:01]} 1-0

[Event "European Online Club-ch-G 2021"]
[Site "Online"]
[Date "2021.03.27"]
[Round "8.5"]
[White "Motylev, Alexander"]
[Black "Mica, Marek"]
[Result "1-0"]
[ECO "B12"]
[WhiteElo "2641"]
[BlackElo "2274"]
[Annotator "ChessBase"]
[PlyCount "81"]
[EventDate "2021.03.27"]
[EventType "team-tourn"]
[EventCountry "NET"]
[SourceTitle "playchess.com"]
[Source "ChessBase"]
[SourceQuality "1"]
[TimeControl "900+5"]

1. e4 {[%emt 0:00:00]} c6 {[%emt 0:00:06]} 2. d4 {[%emt 0:00:03]} d5 {[%emt 0:00:02]} 3. e5 {[%emt 0:00:01]} Bf5 {[%emt 0:00:03]} 4. h4 {[%emt 0:00:03]} h5 {[%emt 0:00:03]} 5. Bd3 {[%emt 0:00:02]} Bxd3 {[%emt 0:00:02]} 6. Qxd3 {[%emt 0:00:01]} e6 {[%emt 0:00:03]} 7. Bg5 {[%emt 0:00:02]} Be7 {[%emt 0:00:34]} 8. Nf3 {[%emt 0:00:03]} Nh6 {[%emt 0:00:17]} 9. Bxh6 {[%emt 0:00:14]} Rxh6 {[%emt 0:00:02]} 10. Nc3 {[%emt 0:00:01]} Qa5 {[%emt 0:00:28]} 11. O-O {[%emt 0:00:25]} Qa6 {[%emt 0:00:26]} 12. Qe3 {[%emt 0:00:18]} Nd7 {[%emt 0:00:16]} 13. Ne2 {[%emt 0:00:13]} c5 {[%emt 0:00:43]} 14. c3 {[%emt 0:00:14]} Rc8 {[%emt 0:00:29]} 15. Nf4 {[%emt 0:00:11]} Rh8 {[%emt 0:00:29]} 16. g3 {[%emt 0:00:29]} Nb6 {[%emt 0:01:24]} 17. Rfc1 {[%emt 0:00:45]} g6 {[%emt 0:00:17]} 18. Nh3 {[%emt 0:01:46]} Kf8 {[%emt 0:01:34]} 19. dxc5 {[%emt 0:00:39]} Rxc5 {[%emt 0:00:40]} 20. Nd4 {[%emt 0:00:17]} Nd7 {[%emt 0:00:54]} 21. Nf4 {[%emt 0:00:07]} Kg7 {[%emt 0:00:39]} 22. a4 {[%emt 0:00:24]} Rcc8 {[%emt 0:00:24]} 23. a5 {[%emt 0:01:22]} Bc5 {[%emt 0:00:48]} 24. b4 {[%emt 0:00:29]} Bxd4 {[%emt 0:00:07]} 25. cxd4 {[%emt 0:00:02]} Qb5 {[%emt 0:01:51]} 26. Nh3 {[%emt 0:01:15]} Rc6 {[%emt 0:01:14]} 27. Ng5 {[%emt 0:00:20]} Rhc8 {[%emt 0:00:10]} 28. Rxc6 {[%emt 0:00:16]} bxc6 {[%emt 0:00:04]} 29. Qf3 {[%emt 0:01:51]} Rf8 {[%emt 0:00:04]} 30. Qc3 {[%emt 0:00:58]} Nb8 {[%emt 0:00:53]} 31. Rc1 {[%emt 0:00:25]} Qb7 {[%emt 0:00:18]} 32. Kg2 {[%emt 0:00:22]} Qe7 {[%emt 0:00:12]} 33. Qd2 {[%emt 0:00:25]} Rd8 {[%emt 0:00:13]} 34. Rc3 {[%emt 0:00:45]} Qxb4 {[%emt 0:00:49]} 35. Nxf7 {[%emt 0:00:07]} Rf8 {[%emt 0:00:10]} 36. Ng5 {[%emt 0:00:22]} Qe7 {[%emt 0:00:04]} 37. Rb3 {[%emt 0:00:06]} Rc8 {[%emt 0:00:10]} 38. Qb2 {[%emt 0:00:21]} Nd7 {[%emt 0:00:06]} 39. Rb7 {[%emt 0:00:03]} Kf8 {[%emt 0:00:44]} 40. Rxa7 {[%emt 0:00:21]} Ke8 {[%emt 0:00:03]} 41. Qb1 {[%emt 0:00:09]} 1-0

[Event "European Online Club-ch-G 2021"]
[Site "Online"]
[Date "2021.03.27"]
[Round "8.6"]
[White "Stalmach, Richard"]
[Black "Najer, Evgeniy"]
[Result "0-1"]
[ECO "E48"]
[WhiteElo "2296"]
[BlackElo "2648"]
[Annotator "ChessBase"]
[PlyCount "142"]
[EventDate "2021.03.27"]
[EventType "team-tourn"]
[EventCountry "NET"]
[SourceTitle "playchess.com"]
[Source "ChessBase"]
[SourceQuality "1"]
[TimeControl "900+5"]

1. d4 {[%emt 0:00:00]} Nf6 {[%emt 0:00:04]} 2. c4 {[%emt 0:00:02]} e6 {[%emt 0:00:03]} 3. Nc3 {[%emt 0:00:02]} Bb4 {[%emt 0:00:02]} 4. e3 {[%emt 0:00:18]} O-O {[%emt 0:00:08]} 5. Bd3 {[%emt 0:00:03]} c5 {[%emt 0:00:45]} 6. Nge2 {[%emt 0:00:13]} d5 {[%emt 0:00:10]} 7. a3 {[%emt 0:00:05]} Ba5 {[%emt 0:01:24]} 8. dxc5 {[%emt 0:00:20]} dxc4 {[%emt 0:00:04]} 9. Bxc4 {[%emt 0:00:17]} Qxd1+ {[%emt 0:00:17]} 10. Kxd1 {[%emt 0:00:02]} Ng4 {[%emt 0:00:17]} 11. Ke1 {[%emt 0:00:34]} Ne5 {[%emt 0:00:08]} 12. Ba2 {[%emt 0:00:40]} Nd3+ {[%emt 0:01:25]} 13. Kf1 {[%emt 0:00:03]} Rd8 {[%emt 0:02:19]} 14. b4 {[%emt 0:00:16]} Bc7 {[%emt 0:00:03]} 15. f4 {[%emt 0:00:40]} b6 {[%emt 0:00:58]} 16. Nb5 {[%emt 0:01:25]} Na6 {[%emt 0:00:03]} 17. c6 {[%emt 0:00:27]} Ndxb4 {[%emt 0:03:34]} 18. Ned4 {[%emt 0:01:40]} Nxc6 {[%emt 0:00:44]} 19. Bb2 {[%emt 0:00:28]} Bb7 {[%emt 0:00:47]} 20. Rc1 {[%emt 0:00:05]} Nxd4 {[%emt 0:00:27]} 21. Bxd4 {[%emt 0:00:26]} Bd6 {[%emt 0:01:07]} 22. Nxd6 {[%emt 0:00:23]} Rxd6 {[%emt 0:00:02]} 23. Ke2 {[%emt 0:00:22]} Nc5 {[%emt 0:00:30]} 24. Rhg1 {[%emt 0:00:39]} Rad8 {[%emt 0:00:20]} 25. g4 {[%emt 0:00:14]} Kf8 {[%emt 0:01:01]} 26. f5 {[%emt 0:00:10]} e5 {[%emt 0:00:13]} 27. Bc3 {[%emt 0:00:52]} Ba6+ {[%emt 0:00:04]} 28. Kf3 {[%emt 0:00:01]} Bb7+ {[%emt 0:00:02]} 29. Ke2 {[%emt 0:00:02]} f6 {[%emt 0:00:11]} 30. Bc4 {[%emt 0:00:11]} Ba6 {[%emt 0:00:03]} 31. Bxa6 {[%emt 0:00:08]} Nxa6 {[%emt 0:00:01]} 32. Rc2 {[%emt 0:00:07]} Kf7 {[%emt 0:00:07]} 33. g5 {[%emt 0:00:11]} Rc6 {[%emt 0:00:02]} 34. Rd2 {[%emt 0:00:15]} Rxd2+ {[%emt 0:00:04]} 35. Bxd2 {[%emt 0:00:05]} Nc5 {[%emt 0:00:02]} 36. g6+ {[%emt 0:00:04]} hxg6 {[%emt 0:00:04]} 37. fxg6+ {[%emt 0:00:02]} Ke6 {[%emt 0:00:03]} 38. h4 {[%emt 0:00:21]} Rc8 {[%emt 0:00:01]} 39. Kf3 {[%emt 0:00:23]} Rh8 {[%emt 0:00:03]} 40. Kg4 {[%emt 0:00:32]} f5+ {[%emt 0:00:02]} 41. Kh3 {[%emt 0:00:08]} Ne4 {[%emt 0:00:02]} 42. Be1 {[%emt 0:00:03]} Kf6 {[%emt 0:00:03]} 43. Rg2 {[%emt 0:00:12]} Rh6 {[%emt 0:00:13]} 44. Rc2 {[%emt 0:00:02]} Rxg6 {[%emt 0:00:25]} 45. Rc6+ {[%emt 0:00:12]} Kf7 {[%emt 0:00:02]} 46. Rc7+ {[%emt 0:00:01]} Ke6 {[%emt 0:00:01]} 47. Rc6+ {[%emt 0:00:18]} Kf7 {[%emt 0:00:03]} 48. Rc7+ {[%emt 0:00:02]} Ke6 {[%emt 0:00:02]} 49. Rc6+ {[%emt 0:00:03]} Nd6 {[%emt 0:00:04]} 50. Rc7 {[%emt 0:00:09]} f4 {[%emt 0:00:10]} 51. exf4 {[%emt 0:00:04]} exf4 {[%emt 0:00:01]} 52. Rxa7 {[%emt 0:00:02]} f3 {[%emt 0:00:04]} 53. Ra6 {[%emt 0:00:08]} Nc4 {[%emt 0:00:04]} 54. Ra4 {[%emt 0:00:06]} Kd5 {[%emt 0:00:02]} 55. Rb4 {[%emt 0:00:07]} Rg2 {[%emt 0:00:06]} 56. Bg3 {[%emt 0:00:32]} Rg1 {[%emt 0:00:17]} 57. Bf2 {[%emt 0:00:25]} Rg2 {[%emt 0:00:05]} 58. Bg3 {[%emt 0:00:02]} Ra2 {[%emt 0:00:06]} 59. Rb5+ {[%emt 0:00:31]} Ke4 {[%emt 0:00:02]} 60. Rb4 {[%emt 0:00:03]} Kd4 {[%emt 0:00:11]} 61. a4 {[%emt 0:00:40]} f2 {[%emt 0:00:03]} 62. Rb1 {[%emt 0:00:48]} Ne3 {[%emt 0:00:04]} 63. Bxf2 {[%emt 0:00:06]} Rxf2 {[%emt 0:00:01]} 64. Rxb6 {[%emt 0:00:02]} Rf3+ {[%emt 0:00:03]} 65. Kh2 {[%emt 0:00:02]} Nf5 {[%emt 0:00:09]} 66. a5 {[%emt 0:00:14]} Ra3 {[%emt 0:00:06]} 67. a6 {[%emt 0:00:06]} Ke4 {[%emt 0:00:02]} 68. Rg6 {[%emt 0:00:11]} Kf4 {[%emt 0:00:02]} 69. h5 {[%emt 0:00:05]} Ra2+ {[%emt 0:00:03]} 70. Kh3 {[%emt 0:00:06]} Ra5 {[%emt 0:00:14]} 71. Kg2 {[%emt 0:00:11]} Nh4+ {[%emt 0:00:03]} 0-1

[Event "European Online Club-ch-G 2021"]
[Site "Online"]
[Date "2021.03.27"]
[Round "8.7"]
[White "Kobalia, Mikhail"]
[Black "Gnojek, Petr"]
[Result "1/2-1/2"]
[ECO "C00"]
[WhiteElo "2587"]
[BlackElo "2267"]
[Annotator "ChessBase"]
[PlyCount "96"]
[EventDate "2021.03.27"]
[EventType "team-tourn"]
[EventCountry "NET"]
[SourceTitle "playchess.com"]
[Source "ChessBase"]
[SourceQuality "1"]
[TimeControl "900+5"]

1. e4 {[%emt 0:00:00]} c5 {[%emt 0:00:03]} 2. Nf3 {[%emt 0:00:03]} e6 {[%emt 0:00:01]} 3. g3 {[%emt 0:00:02]} Nc6 {[%emt 0:00:12]} 4. Bg2 {[%emt 0:00:04]} d6 {[%emt 0:00:08]} 5. O-O {[%emt 0:00:04]} Nf6 {[%emt 0:00:03]} 6. Qe2 {[%emt 0:00:02]} Be7 {[%emt 0:00:03]} 7. c3 {[%emt 0:00:03]} e5 {[%emt 0:00:26]} 8. Rd1 {[%emt 0:00:11]} O-O {[%emt 0:00:32]} 9. Na3 {[%emt 0:00:33]} a6 {[%emt 0:00:31]} 10. d4 {[%emt 0:00:12]} cxd4 {[%emt 0:00:26]} 11. cxd4 {[%emt 0:00:03]} Bg4 {[%emt 0:00:21]} 12. dxe5 {[%emt 0:00:33]} Nxe5 {[%emt 0:00:08]} 13. Bf4 {[%emt 0:00:05]} Nfd7 {[%emt 0:01:11]} 14. Nc4 {[%emt 0:00:06]} Nxc4 {[%emt 0:00:35]} 15. Qxc4 {[%emt 0:00:00]} Qb6 {[%emt 0:00:05]} 16. Qd4 {[%emt 0:00:51]} Qxd4 {[%emt 0:01:04]} 17. Rxd4 {[%emt 0:00:00]} Bxf3 {[%emt 0:00:03]} 18. Bxf3 {[%emt 0:00:05]} Ne5 {[%emt 0:00:01]} 19. Be2 {[%emt 0:00:27]} Rac8 {[%emt 0:00:22]} 20. Rad1 {[%emt 0:01:18]} Rc2 {[%emt 0:01:32]} 21. R4d2 {[%emt 0:00:04]} Rfc8 {[%emt 0:00:10]} 22. Rxc2 {[%emt 0:00:16]} Rxc2 {[%emt 0:00:04]} 23. Rd2 {[%emt 0:00:02]} Rc7 {[%emt 0:01:55]} 24. Be3 {[%emt 0:00:20]} Kf8 {[%emt 0:00:45]} 25. b3 {[%emt 0:03:11]} Ke8 {[%emt 0:00:17]} 26. f4 {[%emt 0:00:04]} Nd7 {[%emt 0:00:03]} 27. Kf2 {[%emt 0:00:09]} Nf6 {[%emt 0:00:40]} 28. Bf3 {[%emt 0:00:06]} b5 {[%emt 0:00:25]} 29. Ke2 {[%emt 0:00:15]} g6 {[%emt 0:00:43]} 30. Kd3 {[%emt 0:00:32]} Nd7 {[%emt 0:00:49]} 31. Rc2 {[%emt 0:00:09]} Nc5+ {[%emt 0:00:02]} 32. Ke2 {[%emt 0:00:13]} Ne6 {[%emt 0:00:02]} 33. Rxc7 {[%emt 0:00:13]} Nxc7 {[%emt 0:00:03]} 34. Kd3 {[%emt 0:00:06]} Kd7 {[%emt 0:00:03]} 35. Bg4+ {[%emt 0:00:06]} Kc6 {[%emt 0:00:07]} 36. b4 {[%emt 0:00:28]} d5 {[%emt 0:00:14]} 37. exd5+ {[%emt 0:02:46]} Nxd5 {[%emt 0:00:03]} 38. a3 {[%emt 0:00:53]} Nxe3 {[%emt 0:00:39]} 39. Kxe3 {[%emt 0:00:08]} Bf6 {[%emt 0:00:13]} 40. Bf3+ {[%emt 0:00:03]} Kd6 {[%emt 0:00:09]} 41. Bb7 {[%emt 0:00:25]} Bb2 {[%emt 0:00:03]} 42. Kd3 {[%emt 0:00:06]} Bxa3 {[%emt 0:00:09]} 43. Kc3 {[%emt 0:00:04]} Bc1 {[%emt 0:00:20]} 44. Bxa6 {[%emt 0:00:05]} Kc6 {[%emt 0:00:02]} 45. Kd3 {[%emt 0:00:36]} Ba3 {[%emt 0:00:13]} 46. Kc3 {[%emt 0:00:03]} Bc1 {[%emt 0:00:02]} 47. Kd3 {[%emt 0:00:02]} Ba3 {[%emt 0:00:03]} 48. Kc3 {[%emt 0:00:02]} Bc1 {[%emt 0:00:01]} 1/2-1/2

[Event "European Online Club-ch-G 2021"]
[Site "Online"]
[Date "2021.03.27"]
[Round "8.8"]
[White "Paseka, Matyas"]
[Black "Murzin, Volodar"]
[Result "0-1"]
[ECO "B93"]
[WhiteElo "2069"]
[BlackElo "2478"]
[Annotator "ChessBase"]
[PlyCount "60"]
[EventDate "2021.03.27"]
[EventType "team-tourn"]
[EventCountry "NET"]
[SourceTitle "playchess.com"]
[Source "ChessBase"]
[SourceQuality "1"]
[TimeControl "900+5"]

1. e4 {[%emt 0:00:00]} c5 {[%emt 0:00:03]} 2. Nf3 {[%emt 0:00:02]} d6 {[%emt 0:00:01]} 3. d4 {[%emt 0:00:01]} cxd4 {[%emt 0:00:01]} 4. Nxd4 {[%emt 0:00:02]} Nf6 {[%emt 0:00:02]} 5. Nc3 {[%emt 0:00:01]} a6 {[%emt 0:00:01]} 6. f4 {[%emt 0:00:05]} Nbd7 {[%emt 0:00:22]} 7. Bc4 {[%emt 0:00:56]} Qc7 {[%emt 0:00:14]} 8. Bb3 {[%emt 0:00:17]} Nc5 {[%emt 0:00:08]} 9. Nd5 {[%emt 0:01:19]} Nxd5 {[%emt 0:00:03]} 10. exd5 {[%emt 0:00:01]} Nxb3 {[%emt 0:00:09]} 11. Nxb3 {[%emt 0:00:15]} Bf5 {[%emt 0:00:24]} 12. Nd4 {[%emt 0:00:24]} Be4 {[%emt 0:00:04]} 13. Nf3 {[%emt 0:01:14]} Qxc2 {[%emt 0:01:47]} 14. Qxc2 {[%emt 0:01:03]} Bxc2 {[%emt 0:00:04]} 15. Kf2 {[%emt 0:00:07]} Be4 {[%emt 0:00:05]} 16. Rd1 {[%emt 0:00:05]} Rc8 {[%emt 0:00:06]} 17. Ke3 {[%emt 0:00:48]} Bc2 {[%emt 0:00:16]} 18. Rd2 {[%emt 0:00:13]} g6 {[%emt 0:00:15]} 19. Nd4 {[%emt 0:00:19]} Ba4 {[%emt 0:00:05]} 20. b3 {[%emt 0:00:07]} Bd7 {[%emt 0:00:06]} 21. Bb2 {[%emt 0:00:04]} Bg7 {[%emt 0:00:03]} 22. Re1 {[%emt 0:00:57]} Bf6 {[%emt 0:01:34]} 23. Kf3 {[%emt 0:01:42]} Kd8 {[%emt 0:01:40]} 24. g4 {[%emt 0:01:02]} Re8 {[%emt 0:00:10]} 25. g5 {[%emt 0:01:27]} Bh8 {[%emt 0:00:03]} 26. Re3 {[%emt 0:00:27]} Rc5 {[%emt 0:00:13]} 27. Ba3 {[%emt 0:03:04]} Rxd5 {[%emt 0:00:15]} 28. Red3 {[%emt 0:00:03]} e5 {[%emt 0:00:17]} 29. fxe5 {[%emt 0:00:34]} dxe5 {[%emt 0:00:02]} 30. Nc2 {[%emt 0:00:41]} e4+ {[%emt 0:00:04]} 0-1

[Event "European Online Club-ch-G 2021"]
[Site "Online"]
[Date "2021.03.27"]
[Round "8.9"]
[White "Jobava, Baadur"]
[Black "Sevdimaliyev, Urfan"]
[Result "1-0"]
[ECO "B32"]
[WhiteElo "2603"]
[BlackElo "2369"]
[Annotator "ChessBase"]
[PlyCount "49"]
[EventDate "2021.03.27"]
[EventType "team-tourn"]
[EventCountry "NET"]
[SourceTitle "playchess.com"]
[Source "ChessBase"]
[SourceQuality "1"]
[TimeControl "900+5"]

1. e4 {[%emt 0:00:00]} c5 {[%emt 0:00:30]} 2. Nf3 {[%emt 0:00:07]} Nc6 {[%emt 0:00:03]} 3. d4 {[%emt 0:00:02]} cxd4 {[%emt 0:00:03]} 4. Nxd4 {[%emt 0:00:00]} e5 {[%emt 0:00:04]} 5. Nb5 {[%emt 0:00:07]} d6 {[%emt 0:00:04]} 6. c4 {[%emt 0:00:03]} Be7 {[%emt 0:00:16]} 7. Bd3 {[%emt 0:00:05]} a6 {[%emt 0:00:18]} 8. N5c3 {[%emt 0:00:02]} Be6 {[%emt 0:00:21]} 9. O-O {[%emt 0:00:11]} Rc8 {[%emt 0:00:18]} 10. Be3 {[%emt 0:00:15]} Bg5 {[%emt 0:00:16]} 11. Nd5 {[%emt 0:00:31]} Bxe3 {[%emt 0:00:19]} 12. fxe3 {[%emt 0:00:00]} Qg5 {[%emt 0:00:30]} 13. Nbc3 {[%emt 0:00:36]} Nge7 {[%emt 0:00:18]} 14. Rf3 {[%emt 0:00:17]} O-O {[%emt 0:00:37]} 15. Rg3 {[%emt 0:00:11]} Qh6 {[%emt 0:00:04]} 16. Qb3 {[%emt 0:00:52]} Rb8 {[%emt 0:00:57]} 17. Rf1 {[%emt 0:00:05]} Ng6 {[%emt 0:00:40]} 18. Qb6 {[%emt 0:00:13]} Qh4 {[%emt 0:00:24]} 19. b4 {[%emt 0:00:06]} Qd8 {[%emt 0:00:28]} 20. a3 {[%emt 0:00:04]} Qxb6 {[%emt 0:00:39]} 21. Nxb6 {[%emt 0:00:00]} Nge7 {[%emt 0:00:13]} 22. Ncd5 {[%emt 0:00:32]} Nc8 {[%emt 0:00:38]} 23. Nd7 {[%emt 0:00:10]} Bxd7 {[%emt 0:01:02]} 24. Nf6+ {[%emt 0:00:04]} Kh8 {[%emt 0:00:02]} 25. Nxd7 {[%emt 0:00:00]} 1-0

[Event "European Online Club-ch-G 2021"]
[Site "Online"]
[Date "2021.03.27"]
[Round "8.10"]
[White "Babayev, Talib"]
[Black "Dreev, Aleksey"]
[Result "0-1"]
[ECO "B45"]
[WhiteElo "2282"]
[BlackElo "2647"]
[Annotator "ChessBase"]
[PlyCount "68"]
[EventDate "2021.03.27"]
[EventType "team-tourn"]
[EventCountry "NET"]
[SourceTitle "playchess.com"]
[Source "ChessBase"]
[SourceQuality "1"]
[TimeControl "900+5"]

1. e4 {[%emt 0:00:00]} c5 {[%emt 0:00:03]} 2. Nf3 {[%emt 0:00:05]} e6 {[%emt 0:00:02]} 3. d4 {[%emt 0:00:03]} cxd4 {[%emt 0:00:01]} 4. Nxd4 {[%emt 0:00:03]} Nf6 {[%emt 0:00:02]} 5. Nc3 {[%emt 0:00:02]} Nc6 {[%emt 0:00:02]} 6. Ndb5 {[%emt 0:00:06]} Bc5 {[%emt 0:00:02]} 7. Bf4 {[%emt 0:00:35]} O-O {[%emt 0:00:39]} 8. Bd6 {[%emt 0:00:24]} Bxd6 {[%emt 0:00:23]} 9. Nxd6 {[%emt 0:00:03]} Qb6 {[%emt 0:01:57]} 10. Nc4 {[%emt 0:00:24]} Qc5 {[%emt 0:01:12]} 11. Qd6 {[%emt 0:00:05]} Qg5 {[%emt 0:02:05]} 12. f4 {[%emt 0:01:10]} Qh6 {[%emt 0:00:41]} 13. O-O-O {[%emt 0:00:47]} b5 {[%emt 0:00:20]} 14. g4 {[%emt 0:00:56]} Ne8 {[%emt 0:00:37]} 15. Qd2 {[%emt 0:00:37]} bxc4 {[%emt 0:00:03]} 16. g5 {[%emt 0:00:04]} Qh4 {[%emt 0:00:03]} 17. Bxc4 {[%emt 0:00:23]} Bb7 {[%emt 0:00:21]} 18. Rhf1 {[%emt 0:00:49]} Rd8 {[%emt 0:00:12]} 19. Qg2 {[%emt 0:00:26]} f5 {[%emt 0:01:29]} 20. Rd3 {[%emt 0:00:41]} Qh5 {[%emt 0:00:22]} 21. Rh3 {[%emt 0:00:13]} Qf7 {[%emt 0:01:36]} 22. exf5 {[%emt 0:00:11]} Na5 {[%emt 0:00:10]} 23. fxe6 {[%emt 0:03:13]} dxe6 {[%emt 0:00:07]} 24. Qe2 {[%emt 0:00:06]} Nxc4 {[%emt 0:00:07]} 25. Rg1 {[%emt 0:00:50]} Qxf4+ {[%emt 0:00:40]} 26. Kb1 {[%emt 0:00:04]} Nd2+ {[%emt 0:00:13]} 27. Ka1 {[%emt 0:00:03]} Ne4 {[%emt 0:00:44]} 28. Qh5 {[%emt 0:00:23]} Qf5 {[%emt 0:00:07]} 29. Nd1 {[%emt 0:00:34]} Qg6 {[%emt 0:00:12]} 30. Qe2 {[%emt 0:00:26]} Rd2 {[%emt 0:00:12]} 31. Qc4 {[%emt 0:00:42]} N8d6 {[%emt 0:00:04]} 32. Qc7 {[%emt 0:00:08]} Rc8 {[%emt 0:00:24]} 33. Qd7 {[%emt 0:00:03]} Rdxc2 {[%emt 0:00:42]} 34. Nc3 {[%emt 0:00:08]} Qe8 {[%emt 0:00:05]} 0-1

[Event "European Online Club-ch-G 2021"]
[Site "Online"]
[Date "2021.03.27"]
[Round "8.11"]
[White "Piorun, Kacper"]
[Black "Gasimov, Parviz"]
[Result "1-0"]
[ECO "A45"]
[WhiteElo "2615"]
[BlackElo "2337"]
[Annotator "ChessBase"]
[PlyCount "41"]
[EventDate "2021.03.27"]
[EventType "team-tourn"]
[EventCountry "NET"]
[SourceTitle "playchess.com"]
[Source "ChessBase"]
[SourceQuality "1"]
[TimeControl "900+5"]

1. d4 {[%emt 0:00:00]} Nf6 {[%emt 0:00:03]} 2. Bg5 {[%emt 0:00:03]} Ne4 {[%emt 0:00:03]} 3. h4 {[%emt 0:00:10]} c5 {[%emt 0:00:10]} 4. d5 {[%emt 0:00:03]} Qb6 {[%emt 0:00:58]} 5. Nd2 {[%emt 0:00:05]} Nxg5 {[%emt 0:00:07]} 6. hxg5 {[%emt 0:00:02]} g6 {[%emt 0:00:27]} 7. e4 {[%emt 0:00:20]} Qxb2 {[%emt 0:00:30]} 8. Ngf3 {[%emt 0:00:11]} d6 {[%emt 0:00:19]} 9. Rb1 {[%emt 0:00:13]} Qg7 {[%emt 0:00:06]} 10. e5 {[%emt 0:00:58]} Nd7 {[%emt 0:02:40]} 11. Bb5 {[%emt 0:00:42]} a6 {[%emt 0:01:38]} 12. Bxd7+ {[%emt 0:00:05]} Bxd7 {[%emt 0:00:02]} 13. Rxb7 {[%emt 0:00:16]} h6 {[%emt 0:01:53]} 14. Qb1 {[%emt 0:01:45]} Rd8 {[%emt 0:00:57]} 15. Rxd7 {[%emt 0:02:55]} Rxd7 {[%emt 0:00:46]} 16. e6 {[%emt 0:00:06]} fxe6 {[%emt 0:01:37]} 17. dxe6 {[%emt 0:00:03]} Rd8 {[%emt 0:00:10]} 18. Qb7 {[%emt 0:00:11]} Qa1+ {[%emt 0:00:19]} 19. Ke2 {[%emt 0:00:04]} Bg7 {[%emt 0:00:06]} 20. Rxa1 {[%emt 0:00:05]} Bxa1 {[%emt 0:00:03]} 21. Qe4 {[%emt 0:00:02]} 1-0